bitfinex-derivatives/quotes_ETHF0:USTF0_20240826
["timestamp","ask_amount","ask_price","bid_price","bid_amount"]
[1724700978433,0.3846209,2691.8,2691.6,0.375262]
[1724700979022,0.0039209,2691.8,2691.7,0.37138]
[1724700980120,0.0039209,2691.8,2691.7,0.74168]
[1724700981122,0.0039209,2691.8,2691.7,0.37138]
[1724700981330,0.3753009,2691.8,2691.6,0.003872]
[1724700981537,0.37138,2691.7,2691.6,0.003872]
[1724700981725,0.74318,2691.7,2691.6,0.003872]
[1724700982834,3.5852909,2691.8,2691.6,0.375262]
[1724700983128,3.5852909,2691.8,2691.6,0.003872]
[1724700983331,3.5852909,2691.8,2691.6,0.375262]
[1724700983727,0.37138,2691.7,2691.6,0.375262]
[1724700984037,0.0039209,2691.8,2691.7,0.37138]
[1724700986636,0.0039209,2691.8,2691.7,4.08658]
[1724700988130,0.0039209,2691.8,2691.7,14.1535]
[1724700989441,0.0039209,2691.8,2691.7,13.22504]
[1724700990035,0.0039209,2691.8,2691.7,10.01504]
[1724700991132,0.0039209,2691.8,2691.7,5.01504]
[1724700991639,0.0039209,2691.8,2691.7,10.01504]
[1724700993041,0.0039209,2691.8,2691.7,26.61504]
[1724700995431,0.0039209,2691.8,2691.7,10.01504]
[1724700995838,0.0039209,2691.8,2691.7,26.61504]
[1724700996035,0.0039209,2691.8,2691.7,29.82284]
[1724700999539,0.0039209,2691.8,2691.7,24.82284]
[1724701003141,0.0039209,2691.8,2691.7,25.7513]
[1724701007241,0.0039209,2691.8,2691.7,24.82284]
[1724701007436,0.0039209,2691.8,2691.7,8.22284]
[1724701010144,0.0039209,2691.8,2691.7,5.01504]
[1724701011750,0.00557041,2692.0,2691.9,1.29974]
[1724701012143,0.00557041,2692.0,2691.9,3.39184]
[1724701012439,0.00557041,2692.0,2691.9,4.32023]
[1724701012646,5.428,2692.9,2692.3,0.92823]
[1724701012847,0.00377517,2692.4,2692.3,1.29953]
[1724701013149,0.00011814,2692.4,2692.3,5.01393]
[1724701013348,0.00011814,2692.4,2692.3,5.38843]
[1724701013646,0.00011814,2692.4,2692.3,6.72843]
[1724701014036,0.00011814,2692.4,2692.3,6.31668]
[1724701017249,0.00011814,2692.4,2692.3,5.01393]
[1724701017554,0.00011814,2692.4,2692.3,0.3713]
[1724701019058,1.11551814,2692.4,2692.3,0.3713]
[1724701019245,1.48679814,2692.4,2692.3,0.3713]
[1724701019444,1.11551814,2692.4,2692.3,0.3713]
[1724701020542,0.92825,2692.3,2691.8,1.34245602]
[1724701020751,3.58134,2692.1,2691.9,0.37135]
[1724701020953,3.21,2692.1,2691.6,0.003872]
[1724701021152,3.21,2692.1,2691.7,0.37138]
[1724701021153,0.37136,2691.9,2691.7,0.37138]
[1724701021348,0.7529,2691.8,2691.7,0.37138]
[1724701021549,1.1329,2691.8,2691.7,0.37138]
[1724701022349,0.37138,2691.7,2691.6,0.003872]
[1724701022550,4.8481,2691.8,2691.7,0.37138]
[1724701022551,10.52457662,2691.8,2691.7,0.37138]
[1724701023150,10.89594662,2691.8,2691.6,0.375262]
[1724701023545,10.89594662,2691.8,2691.6,0.003872]
[1724701023546,4.08658,2691.7,2691.6,0.003872]
[1724701024557,3.7152,2691.7,2691.6,0.003872]
[1724701024944,4.08658,2691.7,2691.6,0.003872]
[1724701025450,3.7152,2691.7,2691.6,0.003872]
[1724701025959,4.08658,2691.7,2691.6,0.003872]
[1724701026848,3.7152,2691.7,2691.6,0.003872]
[1724701027058,1.1329,2691.8,2691.6,0.375272]
[1724701027450,9.06947947,2691.7,2691.6,0.375272]
[1724701027753,9.06947947,2691.7,2691.6,0.003872]
[1724701028551,9.06947947,2691.7,2691.6,0.375272]
[1724701028753,9.06947947,2691.7,2691.6,0.003872]
[1724701029959,0.37128,2692.5,2692.2,0.37131]
[1724701030251,13.01528287,2692.3,2692.2,0.37131]
[1724701030461,9.80748287,2692.3,2692.2,0.37131]
[1724701030650,0.00557041,2692.6,2692.3,0.3713]
[1724701030853,0.38037041,2692.6,2692.3,0.3713]
[1724701031248,0.76597041,2692.6,2692.3,0.3713]
[1724701031757,1.13723041,2692.6,2692.3,0.3713]
[1724701032962,0.37127,2692.5,2692.3,0.3713]
[1724701033350,0.3713,2692.3,2691.8,5.10730602]
[1724701033549,0.3876,2692.3,2692.2,0.3713]
[1724701033962,4.102,2692.3,2692.2,0.3713]
[1724701034458,4.4733,2692.3,2692.2,0.3713]
[1724701034650,0.37131,2692.2,2692.1,0.37132]
[1724701035354,0.3876,2692.3,2692.2,0.37131]
[1724701035355,0.75891,2692.3,2692.2,0.37131]
[1724701035553,0.3876,2692.3,2692.2,0.37131]
[1724701035760,4.102,2692.3,2692.2,0.37131]
[1724701035954,0.3876,2692.3,2692.2,0.37131]
[1724701036159,4.102,2692.3,2692.2,0.37131]
[1724701036357,4.102,2692.3,2692.1,0.37132]
[1724701036567,3.5976,2692.3,2692.0,0.37134]
[1724701036753,3.21,2692.1,2691.8,3.2078]
[1724701037061,3.21,2692.1,2691.8,0.37136]
[1724701037062,0.75815,2692.0,2691.8,0.37136]
[1724701037258,1.13795,2692.0,2691.8,0.37136]
[1724701037451,1.13795,2692.0,2691.9,0.37135]
[1724701037659,0.7666,2692.0,2691.9,0.37135]
[1724701037857,4.481,2692.0,2691.9,0.37135]
[1724701038255,4.85234,2692.0,2691.9,0.37135]
[1724701038456,4.85234,2692.0,2691.8,0.37136]
[1724701038651,0.7666,2692.0,2691.9,0.37135]
[1724701039055,4.481,2692.0,2691.9,0.37135]
[1724701039254,4.85234,2692.0,2691.9,0.37135]
[1724701039463,4.481,2692.0,2691.9,0.37135]
[1724701040366,0.7666,2692.0,2691.9,0.37135]
[1724701040565,1.13794,2692.0,2691.9,0.37135]
[1724701041163,3.5976,2692.3,2692.1,0.37133]
[1724701041469,3.96891,2692.3,2692.2,0.37131]
[1724701041767,9.60169613,2692.3,2692.2,0.37131]
[1724701041968,9.21409613,2692.3,2692.2,0.37131]
[1724701042469,0.00011814,2692.4,2692.3,0.3713]
[1724701042859,0.00011814,2692.4,2692.3,1.29955]
[1724701044756,0.00011814,2692.4,2692.3,4.50735]
[1724701045166,0.00011814,2692.4,2692.3,3.5791]
[1724701048560,0.00011814,2692.4,2692.3,4.50735]
[1724701048764,0.00011814,2692.4,2692.3,3.5791]
[1724701049369,0.00011814,2692.4,2692.3,4.50735]
[1724701049761,0.00011814,2692.4,2692.3,4.86505]
[1724701050570,0.00011814,2692.4,2692.3,8.57945]
[1724701050768,0.00011814,2692.4,2692.3,9.5077]
[1724701050972,0.00011814,2692.4,2692.3,12.7177]
[1724701053074,0.00011814,2692.4,2692.3,29.3177]
[1724701058770,0.00011814,2692.4,2692.3,3.5791]
[1724701062566,3.71451814,2692.4,2692.3,3.2078]
[1724701062766,3.71451814,2692.4,2692.3,3.5791]
[1724701062973,4.82599814,2692.4,2692.3,3.2078]
[1724701063173,4.45471814,2692.4,2692.3,3.2078]
[1724701063768,4.45471814,2692.4,2692.3,3.5791]
[1724701065984,4.45471814,2692.4,2692.3,0.3713]
[1724701066971,0.74031814,2692.4,2692.3,0.3713]
[1724701068381,0.00011814,2692.4,2692.3,0.3713]
[1724701068578,0.00011814,2692.4,2692.3,1.29955]
[1724701069275,0.00011814,2692.4,2692.3,0.3713]
[1724701076086,0.00011814,2692.4,2692.3,1.29955]
[1724701079995,0.00011814,2692.4,2692.3,0.3713]
[1724701080199,0.00011814,2692.4,2692.3,1.29955]
[1724701084611,0.00011814,2692.4,2692.3,0.3713]
[1724701085503,0.00011814,2692.4,2692.3,2.27064602]
[1724701085905,0.00011814,2692.4,2692.3,1.29955]
[1724701086311,0.00011814,2692.4,2692.3,2.27064602]
[1724701087210,0.00011814,2692.4,2692.3,4.12789429]
[1724701087411,0.00011814,2692.4,2692.3,3.15679827]
[1724701087915,0.00011814,2692.4,2692.3,4.13051436]
[1724701088103,0.00011814,2692.4,2692.3,3.15679827]
[1724701088304,0.00011814,2692.4,2692.3,4.6134423]
[1724701089605,0.00011814,2692.4,2692.3,4.13074227]
[1724701089799,0.00011814,2692.4,2692.3,4.6134423]
[1724701090813,0.00011814,2692.4,2692.3,4.9806423]
[1724701091009,0.00011814,2692.4,2692.3,3.52399827]
[1724701091415,0.00011814,2692.4,2692.3,4.49794761]
[1724701091615,0.00011814,2692.4,2692.3,3.52399827]
[1724701092013,0.00011814,2692.4,2692.3,2.22854827]
[1724701092215,0.37139814,2692.4,2692.3,0.97397498]
[1724701092511,0.37132,2692.2,2691.9,0.97397498]
[1724701092715,2.6397,2692.0,2691.9,0.97397498]
[1724701092915,1.34,2692.0,2691.6,0.97784698]
[1724701093215,1.34,2691.7,2691.6,0.375262]
[1724701094002,0.3727,2691.8,2691.7,0.37138]
[1724701094315,0.3701,2691.9,2691.8,0.37137]
[1724701095117,1.12133,2692.1,2691.9,0.37135]
[1724701095320,0.3881,2692.0,2691.9,0.37135]
[1724701095619,9.71619567,2692.0,2691.9,0.37135]
[1724701098106,13.80193567,2692.0,2691.9,0.37135]
[1724701098719,13.80193567,2692.0,2691.7,0.3905]
[1724701098720,0.37136,2691.9,2691.8,0.37136]
[1724701098912,0.37136,2691.9,2691.7,0.76187]
[1724701099216,0.37137,2691.8,2691.7,0.37138]
[1724701099417,0.37138,2691.7,2691.6,3.211672]
[1724701099921,4.08658,2691.7,2691.6,3.211672]
[1724701101707,4.08658,2691.7,2691.6,3.583062]
[1724701102014,0.37137,2691.8,2691.6,3.211672]
[1724701102221,0.37137,2691.8,2691.7,0.37138]
[1724701102421,0.37137,2691.8,2691.6,3.211672]
[1724701102422,9.69802211,2691.8,2691.6,3.211672]
[1724701102620,9.69802211,2691.8,2691.6,3.583062]
[1724701103721,9.69802211,2691.8,2691.7,0.37138]
[1724701104119,13.41322211,2691.8,2691.7,0.37138]
[1724701104319,13.04185211,2691.8,2691.7,0.37138]
[1724701104623,9.32665211,2691.8,2691.7,0.37138]
[1724701107720,4.088,2692.3,2691.7,0.92846]
[1724701107932,0.37131,2692.2,2691.8,0.92843]
[1724701108129,9.46716866,2692.2,2692.1,0.37133]
[1724701108336,1.12691814,2692.4,2692.3,0.3713]
[1724701108827,1.49819814,2692.4,2692.3,0.3713]
[1724701113334,0.37139814,2692.4,2692.3,0.3713]
[1724701115139,0.37134,2692.0,2691.9,3.96094]
[1724701115728,0.9283,2692.2,2692.0,0.37133]
[1724701115729,0.37133,2692.1,2692.0,0.37133]
[1724701117440,0.37132,2692.2,2692.1,0.37132]
[1724701117734,0.37133,2692.1,2692.0,0.37133]
[1724701118623,0.37133,2692.1,2691.9,3.5896]
[1724701118624,0.37132,2692.2,2692.1,0.37132]
[1724701120144,0.37133,2692.1,2692.0,0.37133]
[1724701120531,0.37133,2692.1,2691.9,3.5896]
[1724701120532,0.73032,2692.2,2692.1,0.37133]
[1724701124635,10.4134,2692.2,2691.7,0.3754]
[1724701124842,0.37135,2692.0,2691.9,0.37135]
[1724701125238,5.42575,2692.0,2691.9,0.37135]
[1724701125539,0.3671,2692.1,2692.0,0.37134]
[1724701125745,0.73032,2692.2,2692.1,0.37133]
[1724701126134,13.51165086,2692.2,2692.1,0.37133]
[1724701126537,13.14033086,2692.2,2692.1,0.37133]
[1724701126746,4.329,2692.3,2692.2,0.37131]
[1724701126747,3.2078,2692.3,2692.2,0.37131]
[1724701126943,3.2078,2692.3,2692.2,0.75461]
[1724701128630,1.34011814,2692.4,2692.3,0.3713]
[1724701129040,1.71139814,2692.4,2692.3,0.3713]
[1724701129443,1.34011814,2692.4,2692.3,0.3713]
[1724701130034,1.71139814,2692.4,2692.3,0.3713]
[1724701130236,1.34011814,2692.4,2692.3,0.3713]
[1724701130445,1.71139814,2692.4,2692.3,0.3713]
[1724701131156,0.3713,2692.3,2692.2,0.3713]
[1724701131337,0.37133,2692.1,2692.0,0.3722]
[1724701131537,0.37133,2692.1,2691.6,3.211672]
[1724701131538,1.34,2692.1,2691.6,3.211672]
[1724701131746,1.122,2692.0,2691.9,0.37135]
[1724701132155,4.8364,2692.0,2691.9,0.37135]
[1724701132651,2.462,2692.0,2691.9,0.37135]
[1724701132853,1.34,2692.2,2692.1,0.37133]
[1724701133350,14.13582181,2692.2,2692.1,0.37133]
[1724701134055,9.08142181,2692.2,2692.1,0.37133]
[1724701134553,0.7405,2692.3,2692.2,0.37131]
[1724701135057,0.37134,2692.0,2691.9,0.37135]
[1724701135550,0.37133,2692.1,2692.0,0.37134]
[1724701138853,0.37133,2692.2,2692.1,0.37132]
[1724701139250,13.33230967,2692.2,2692.1,0.37132]
[1724701139555,9.24657967,2692.2,2692.1,0.37132]
[1724701140952,9.61788967,2692.2,2692.1,0.37132]
[1724701143741,13.33228967,2692.2,2692.1,0.37132]
[1724701143946,0.37136,2691.9,2691.8,0.37135]
[1724701146252,0.73385,2692.0,2691.9,0.37135]
[1724701147362,0.37132,2692.2,2692.1,0.37131]
[1724701147749,9.50808318,2692.2,2692.1,0.37131]
[1724701148060,9.13676318,2692.2,2692.1,0.37131]
[1724701148259,9.50807318,2692.2,2692.1,0.37131]
[1724701148552,0.37131,2692.2,2692.1,0.37131]
[1724701149062,9.46139677,2692.2,2692.1,0.37131]
[1724701150746,9.09008677,2692.2,2692.1,0.37131]
[1724701150949,9.09008677,2692.2,2692.1,1.12151]
[1724701151145,9.39123385,2692.3,2692.2,0.37131]
[1724701151347,0.37140814,2692.4,2692.3,0.3713]
[1724701151747,0.37131,2692.3,2692.2,0.37131]
[1724701152953,0.37131,2692.2,2691.9,0.97397498]
[1724701153160,0.37134,2692.0,2691.9,0.37135]
[1724701153763,9.47372771,2692.1,2691.8,1.35337498]
[1724701154060,0.37134,2692.0,2691.9,0.37134]
[1724701156160,9.47372771,2692.1,2691.9,0.37134]
[1724701156161,9.84506771,2692.1,2691.9,0.37134]
[1724701156664,9.84506771,2692.1,2692.0,0.37134]
[1724701156859,9.84506771,2692.1,2691.8,1.35337498]
[1724701157060,9.84506771,2692.1,2691.9,0.37134]
[1724701157265,9.84506771,2692.1,2692.0,0.37134]
[1724701157463,9.84506771,2692.1,2691.8,0.3794]
[1724701157660,9.84506771,2692.1,2692.0,0.37134]
[1724701160068,11.18506771,2692.1,2692.0,0.37134]
[1724701160868,0.37134,2692.0,2691.9,0.37134]
[1724701161161,0.37134,2692.0,2691.6,3.211672]
[1724701161162,0.37138,2691.7,2691.6,3.211672]
[1724701161370,1.71138,2691.7,2691.6,3.211672]
[1724701161569,5.42658,2691.7,2691.6,3.211672]
[1724701162163,5.42658,2691.7,2691.6,3.583062]
[1724701163480,0.74646,2691.9,2691.8,0.37137]
[1724701163665,1.7115,2692.0,2691.9,0.37135]
[1724701163967,9.52255447,2692.0,2691.9,0.37135]
[1724701165166,9.89389447,2692.0,2691.9,0.37135]
[1724701165376,9.15105447,2692.0,2691.9,0.37135]
[1724701165775,9.27296669,2692.1,2692.0,0.37134]
[1724701165966,1.48332,2692.2,2692.1,0.37133]
[1724701166474,10.73176734,2692.2,2692.1,0.37133]
[1724701167066,0.37133,2692.1,2692.0,0.37133]
[1724701167364,9.80112618,2692.1,2692.0,0.37133]
[1724701168063,0.37134,2692.0,2691.9,0.74194]
[1724701168472,9.49819646,2692.0,2691.9,0.74194]
[1724701168766,9.49819646,2692.0,2691.9,0.37134]
[1724701169367,13.21259646,2692.0,2691.9,0.37134]
[1724701169971,0.37137,2691.8,2691.7,0.3924]
[1724701170175,0.37138,2691.7,2691.6,3.942552]
[1724701170469,0.37138,2691.7,2691.6,3.583052]
[1724701170470,1.12288,2691.7,2691.6,3.583052]
[1724701171578,1.12288,2691.7,2691.6,0.003872]
[1724701172977,0.75528,2691.7,2691.6,0.375262]
[1724701176774,0.3839,2691.7,2691.6,0.375262]
[1724701178083,0.75528,2691.7,2691.6,0.375262]
[1724701179288,0.3839,2691.7,2691.6,0.375262]
[1724701179586,0.37137,2691.8,2691.7,0.37137]
[1724701183480,3.94506,2691.9,2691.8,0.37137]
[1724701183987,2.07506,2691.9,2691.8,0.37137]
[1724701186388,5.79026,2691.9,2691.8,0.37137]
[1724701186888,2.07506,2691.9,2691.8,0.37137]
[1724701187689,0.37135,2692.0,2691.9,0.37135]
[1724701187884,1.71135,2692.0,2691.9,0.37135]
[1724701188082,14.63549193,2692.0,2691.9,0.37135]
[1724701188789,10.92109193,2692.0,2691.9,0.37135]
[1724701190886,1.2998,2691.8,2691.7,0.7215]
[1724701191191,2.6398,2691.8,2691.7,0.3643]
[1724701191686,3.0134,2691.8,2691.7,0.3643]
[1724701192286,3.0134,2691.8,2691.7,0.73568]
[1724701194782,3.0134,2691.8,2691.7,0.3643]
[1724701196002,2.08497,2691.8,2691.7,0.73568]
[1724701197381,2.08497,2691.8,2691.7,0.3643]
[1724701197583,2.08497,2691.8,2691.7,0.73568]
[1724701198688,2.08497,2691.8,2691.7,0.3643]
[1724701198883,0.37138,2691.7,2691.6,0.003872]
[1724701199299,1.29984,2691.7,2691.6,0.003872]
[1724701200398,0.37138,2691.7,2691.6,0.003872]
[1724701203002,0.37138,2691.7,2691.6,0.375262]
[1724701204103,5.29278,2691.8,2691.7,0.37138]
[1724701204501,14.72359746,2691.8,2691.7,0.37138]
[1724701204902,0.37138,2691.7,2691.6,0.375262]
[1724701208906,14.72359746,2691.8,2691.7,0.37138]
[1724701211400,14.72359746,2691.8,2691.6,0.003872]
[1724701211605,4.08658,2691.7,2691.6,0.003872]
[1724701212205,4.46228,2691.7,2691.6,0.003872]
[1724701213608,1.29994,2691.5,2691.4,0.00557041]
[1724701213907,11.72782144,2691.5,2691.1,0.37146]
[1724701214112,1.34,2691.2,2691.1,0.37146]
[1724701214713,1.34,2691.2,2691.1,0.37589544]
[1724701216403,1.34,2691.3,2691.2,0.37144]
[1724701216598,1.34,2691.3,2691.2,0.72904]
[1724701217408,0.92833,2692.1,2691.2,5.4136]
[1724701217608,0.37138,2691.7,2691.6,1.34]
[1724701217809,0.37138,2691.7,2691.5,1.7114]
[1724701218110,1.71138,2691.7,2691.5,1.7114]
[1724701218307,1.71138,2691.7,2691.5,0.3714]
[1724701218503,1.71138,2691.7,2691.6,0.37139]
[1724701218809,0.37139,2691.6,2691.5,0.3714]
[1724701219210,1.71139,2691.7,2691.5,0.3714]
[1724701220816,0.37142,2691.4,2691.3,1.34766624]
[1724701221016,1.71142,2691.4,2691.3,1.34766624]
[1724701222112,1.71142,2691.4,2691.3,0.3739]
[1724701223316,1.71142,2691.4,2691.1,0.37589544]
[1724701223317,0.37145,2691.3,2691.1,0.37589544]
[1724701223518,1.34,2691.2,2691.1,0.37589544]
[1724701226019,0.37144,2691.3,2691.2,0.37145]
[1724701226612,1.71144,2691.3,2691.2,0.37145]
[1724701231320,1.71144,2691.3,2691.2,0.3834]
[1724701233626,0.37145,2691.2,2691.1,0.00443544]
[1724701233817,1.10565,2691.2,2691.1,0.00443544]
[1724701234726,2.03428,2691.2,2691.1,0.00443544]
[1724701235027,2.39498,2691.2,2691.1,0.00443544]
[1724701235919,1.46635,2691.2,2691.1,0.00443544]
[1724701236229,2.80635,2691.2,2691.1,0.00443544]
[1724701239429,2.80635,2691.2,2691.1,0.37589544]
[1724701239836,2.80635,2691.2,2691.1,0.00443544]
[1724701241024,3.73498,2691.2,2691.1,0.00443544]
[1724701241337,1.30018,2691.0,2690.9,0.00557041]
[1724701241528,2.64018,2691.0,2690.9,0.00557041]
[1724701241830,5.42748,2691.0,2690.9,0.00557041]
[1724701242033,0.37148,2691.0,2690.9,0.00557041]
[1724701242234,1.71148,2691.0,2690.9,0.38601579]
[1724701242531,1.71148,2691.0,2690.9,0.75750579]
[1724701242739,1.71148,2691.0,2690.9,0.38601579]
[1724701243126,1.71148,2691.0,2690.9,0.00871579]
[1724701244134,15.56213393,2691.0,2690.9,0.00871579]
[1724701244327,10.91743393,2691.0,2690.9,0.00871579]
[1724701244632,9.20595393,2691.0,2690.9,0.38020579]
[1724701244835,10.91743393,2691.0,2690.9,0.38020579]
[1724701245343,10.91743393,2691.0,2690.9,0.00871579]
[1724701246535,10.91743393,2691.0,2690.9,0.38020579]
[1724701247338,10.91743393,2691.0,2690.9,0.00871579]
[1724701247736,9.20595393,2691.0,2690.9,0.38020579]
[1724701248040,0.37977041,2691.2,2691.0,0.37148]
[1724701248041,0.37146,2691.1,2691.0,0.37148]
[1724701248236,1.71146,2691.1,2691.0,0.74708]
[1724701248429,11.21037856,2691.1,2691.0,0.74708]
[1724701249037,11.21037856,2691.1,2691.0,0.3756]
[1724701249436,11.21037856,2691.1,2691.0,0.74708]
[1724701249638,11.21037856,2691.1,2691.0,1.13748]
[1724701250434,0.00557041,2691.2,2691.0,6.19348]
[1724701250642,4.088,2692.0,2691.6,0.37139]
[1724701250643,1.34,2691.7,2691.6,0.37139]
[1724701251146,1.71136,2691.9,2691.7,0.37138]
[1724701251340,1.71136,2691.9,2691.8,0.3689]
[1724701251643,10.9010515,2691.9,2691.8,0.3689]
[1724701252737,10.9010515,2691.9,2691.4,0.3904]
[1724701252738,10.5296915,2691.9,2691.4,0.3904]
[1724701253040,1.34,2691.5,2691.4,0.76182]
[1724701253442,1.34,2691.5,2691.4,4.47702]
[1724701253942,1.71142,2691.5,2691.3,0.3636]
[1724701254135,1.71142,2691.4,2691.3,0.73503]
[1724701254335,1.34,2691.4,2691.3,0.73503]
[1724701255642,1.34,2691.6,2691.5,0.3714]
[1724701256045,1.49928,2691.8,2691.6,0.37139]
[1724701256245,0.37138,2691.7,2691.5,0.3714]
[1724701256448,9.10539393,2691.6,2691.5,0.3714]
[1724701256837,0.37138,2691.7,2691.6,0.37139]
[1724701257142,9.87147255,2691.7,2691.6,0.37139]
[1724701257346,9.50009255,2691.7,2691.6,0.37139]
[1724701258533,9.87147255,2691.7,2691.6,0.37139]
[1724701258741,9.50009255,2691.7,2691.6,0.37139]
[1724701260443,9.87147255,2691.7,2691.6,0.37139]
[1724701261147,9.87147255,2691.7,2691.5,0.3714]
[1724701261354,0.37139,2691.6,2691.5,0.3714]
[1724701261853,0.37141,2691.5,2691.4,0.74852]
[1724701263654,0.3714,2691.6,2691.5,0.37141]
[1724701264353,9.50009255,2691.7,2691.6,0.37139]
[1724701264741,3.21,2691.9,2691.8,0.37137]
[1724701265052,9.17499881,2691.9,2691.8,0.37137]
[1724701265944,9.54634881,2691.9,2691.8,0.37137]
[1724701266150,9.17499881,2691.9,2691.8,0.37137]
[1724701267352,9.54634881,2691.9,2691.8,0.37137]
[1724701267542,9.17499881,2691.9,2691.8,0.37137]
[1724701267744,9.54634881,2691.9,2691.8,0.37137]
[1724701269048,9.54634881,2691.9,2691.8,0.76197]
[1724701271047,0.37144,2691.4,2691.3,0.37143]
[1724701272353,0.37144,2691.4,2691.2,0.7399]
[1724701272354,0.37141,2691.5,2691.4,0.37141]
[1724701272555,0.37141,2691.5,2691.2,0.7399]
[1724701272855,0.37141,2691.5,2691.4,0.37142]
[1724701273948,0.37144,2691.3,2691.2,0.37145]
[1724701274150,0.37148,2691.0,2690.9,0.00871579]
[1724701274354,3.58148,2691.0,2690.9,0.00871579]
[1724701274557,3.58148,2691.0,2690.9,5.02494579]
[1724701274558,9.24968509,2691.0,2690.9,5.02494579]
[1724701274854,0.7425,2691.4,2691.2,0.37145]
[1724701274855,1.11393,2691.4,2691.2,0.37145]
[1724701275057,1.11393,2691.4,2691.2,0.37144]
[1724701275249,0.37144,2691.3,2691.2,0.37144]
[1724701275753,1.11393,2691.4,2691.2,0.37144]
[1724701275950,1.11393,2691.4,2691.1,0.74165]
[1724701276366,1.11393,2691.4,2691.2,0.37145]
[1724701276659,1.11393,2691.4,2691.0,0.7296]
[1724701276660,0.37146,2691.2,2691.0,0.37147]
[1724701277255,0.37148,2691.0,2690.9,0.00871579]
[1724701277761,0.37148,2691.0,2690.9,3.72471579]
[1724701278763,0.37147,2691.1,2690.9,4.09620579]
[1724701278955,0.37147,2691.1,2690.9,0.38020579]
[1724701279562,0.37148,2691.0,2690.9,0.00871579]
[1724701279861,0.37153,2690.6,2690.4,0.37155]
[1724701280160,3.21,2690.5,2690.4,0.37155]
[1724701280360,3.58151,2690.8,2690.6,0.37153]
[1724701280557,0.7503,2691.0,2690.5,0.92887]
[1724701280762,1.12178,2691.0,2690.8,0.37149]
[1724701280952,0.7536316,2691.0,2690.9,0.37149]
[1724701281156,0.7536316,2691.0,2690.8,0.00471638]
[1724701281157,0.7536316,2691.0,2690.8,0.37620638]
[1724701281364,0.7536316,2691.0,2690.8,0.73770638]
[1724701281755,1.1251116,2691.0,2690.8,0.73770638]
[1724701282257,2.64023,2690.9,2690.8,0.00471638]
[1724701282458,18.7284809,2690.9,2690.8,0.00471638]
[1724701282666,1.30032,2690.7,2690.6,0.00557041]
[1724701282855,2.64032,2690.7,2690.6,0.00557041]
[1724701283162,15.5215709,2690.7,2690.6,0.00557041]
[1724701283758,15.5215709,2690.7,2690.6,0.0082835]
[1724701283957,17.3915709,2690.7,2690.6,0.0082835]
[1724701284859,0.92896,2690.3,2689.7,3.2078]
[1724701285062,3.58164,2689.8,2689.7,3.2078]
[1724701285364,3.21,2689.8,2689.7,3.2078]
[1724701285566,3.58164,2689.8,2689.7,3.2078]
[1724701285765,21.41730235,2689.8,2689.0,0.97375844]
[1724701285970,21.41730235,2689.8,2688.4,3.2078]
[1724701285971,7.34718,2689.1,2688.4,0.3542]
[1724701286265,7.34718,2689.1,2688.5,3.21]
[1724701286266,3.2078,2689.1,2688.5,3.21]
[1724701286457,3.2078,2689.1,2688.9,0.37176]
[1724701286650,3.2078,2689.1,2689.0,0.3542]
[1724701286851,3.21077415,2689.1,2689.0,0.73007623]
[1724701287264,3.58251415,2689.1,2689.0,0.00412623]
[1724701287770,3.21077415,2689.1,2689.0,0.00412623]
[1724701288465,3.21077415,2689.1,2689.0,0.37587623]
[1724701289964,3.21077415,2689.1,2689.0,4.09427623]
[1724701290167,0.00297415,2689.1,2689.0,4.09427623]
[1724701292363,0.00297415,2689.1,2689.0,9.09427623]
[1724701292871,0.00297415,2689.1,2689.0,10.41496623]
[1724701293060,0.00297415,2689.1,2689.0,9.48557623]
[1724701294476,3.21337041,2689.6,2689.0,9.11382623]
[1724701294676,3.21337041,2689.6,2689.4,0.37169]
[1724701295071,3.21337041,2689.6,2689.3,0.3717]
[1724701295475,3.2176617,2689.6,2689.3,0.3717]
[1724701295871,3.5893317,2689.6,2689.3,0.3717]
[1724701297365,3.2176617,2689.6,2689.4,0.3717]
[1724701297562,3.5893317,2689.6,2689.3,0.3717]
[1724701297769,3.5893317,2689.6,2689.4,0.3776]
[1724701299372,3.5893417,2689.6,2689.4,0.3776]
[1724701299571,3.5893417,2689.6,2689.4,0.7493]
[1724701302784,0.37168,2689.5,2689.4,0.7493]
[1724701305581,3.2176617,2689.6,2689.5,0.37168]
[1724701305875,3.2176617,2689.6,2689.5,0.75678]
[1724701306086,3.2176617,2689.6,2689.5,1.11428]
[1724701308484,0.0098617,2689.6,2689.5,1.11428]
[1724701309184,0.0098617,2689.6,2689.5,4.83268]
[1724701311278,0.0098617,2689.6,2689.5,1.11428]
[1724701311783,0.0098617,2689.6,2689.5,4.83268]
[1724701312181,0.0098617,2689.6,2689.5,1.11428]
[1724701312689,0.3815317,2689.6,2689.5,1.11428]
[1724701312887,0.37168,2689.5,2689.4,0.74929]
[1724701313485,0.37168,2689.5,2689.4,0.3776]
[1724701314382,0.37168,2689.5,2689.4,0.7493]
[1724701315491,0.37174,2689.2,2689.0,0.00412623]
[1724701315689,0.37172,2689.3,2689.0,0.37587623]
[1724701315996,3.58174,2689.2,2689.0,0.00412623]
[1724701316286,9.64862514,2689.1,2689.0,0.00412623]
[1724701316480,10.20972514,2689.1,2689.0,0.00412623]
[1724701316681,13.92812514,2689.1,2689.0,0.00412623]
[1724701317085,16.20308514,2689.1,2689.0,0.00412623]
[1724701317286,12.48468514,2689.1,2689.0,0.00412623]
[1724701317685,12.85642514,2689.1,2689.0,0.00412623]
[1724701322495,3.90049,2689.5,2689.0,0.00412623]
[1724701322693,0.3717,2689.4,2689.0,0.00412623]
[1724701322896,9.78814496,2689.3,2689.1,0.37173]
[1724701323192,9.41643496,2689.4,2689.2,0.37173]
[1724701323193,0.37171,2689.4,2689.2,0.37173]
[1724701323699,9.43919833,2689.4,2689.0,0.73262623]
[1724701323991,9.43919833,2689.4,2689.2,0.37172]
[1724701324187,9.43919833,2689.4,2689.3,0.37171]
[1724701324587,9.43919833,2689.4,2689.0,0.00412623]